[Event "10th Cherry Blossom Classic 2023"]
[Site "Dulles"]
[Date "2023.05.28"]
[Round "5.23"]
[White "Shoykhet, Benjamin"]
[Black "Baim, Elvin"]
[Result "1-0"]
[ECO "D78"]
[WhiteElo "1919"]
[BlackElo "1728"]
[Annotator "RC"]
[PlyCount "53"]
[EventDate "2023.05.24"]
[EventType "swiss"]
[EventCountry "USA"]
[SourceTitle "playchess.com"]
[Source "ChessBase"]
[SourceQuality "1"]
[TimeControl "5400+30"]

1. c4 {[%emt 0:00:02]} Nf6 {[%emt 0:01:06]} 2. g3 {[%emt 0:00:05]} g6 {[%emt 0:00:16]} 3. Bg2 {[%emt 0:00:04]} Bg7 {[%emt 0:00:04]} 4. Nf3 {[%emt 0:00:04]} O-O {[%emt 0:00:14]} 5. O-O {[%emt 0:00:03]} c6 {[%emt 0:00:22]} 6. d4 {[%emt 0:00:48]} d5 {[%emt 0:01:01]} 7. b3 {[%emt 0:00:11]} Bd7 {[%emt 0:06:16]} 8. Nbd2 {[%emt 0:02:31]} Qc8 {[%emt 0:03:06]} 9. Ba3 {[%emt 0:00:33]} Re8 {[%emt 0:01:56]} 10. Re1 {[%emt 0:00:25]} Bh3 {[%emt 0:04:01]} 11. Bh1 {[%emt 0:00:34]} Qg4 12. Qc2 {[%emt 0:11:22]} Qh5 {[%emt 0:32:35]} 13. e4 {[%emt 0:31:10]} dxe4 {[%emt 0:00:41]} 14. Nxe4 {[%emt 0:00:24]} Bf5 {[%emt 0:00:09]} 15. Ne5 {[%emt 0:04:48]} Ng4 {[%emt 0:04:56]} 16. Nxg4 {[%emt 0:00:35]} Qxg4 {[%emt 0:00:16]} 17. Qd2 {[%emt 0:02:09]} Bxe4 {[%emt 0:01:48]} 18. Rxe4 {[%emt 0:00:25]} Qd7 {[%emt 0:00:36]} 19. Rae1 {[%emt 0:03:50]} e6 {[%emt 0:02:11]} 20. h4 {[%emt 0:03:34]} Na6 {[%emt 0:01:29]} 21. h5 {[%emt 0:03:42]} Nc7 {[%emt 0:04:02]} 22. h6 {[%emt 0:05:45]} Bh8 {[%emt 0:00:07]} 23. Bb2 {[%emt 0:04:08]} f5 {[%emt 0:06:05]} 24. Re5 {[%emt 0:01:22]} Bxe5 {[%emt 0:01:25]} 25. Rxe5 {[%emt 0:00:04]} Qf7 {[%emt 0:07:18]} 26. Qc3 {[%emt 0:00:50]} Kf8 {[%emt 0:06:09]} 27. Qb4+ {[%emt 0:01:24]} 1-0

[Event "10th Cherry Blossom Classic 2023"]
[Site "Dulles"]
[Date "2023.05.28"]
[Round "5.24"]
[White "Hu, Merric"]
[Black "Tahmassebi, Bijan"]
[Result "1/2-1/2"]
[ECO "C84"]
[WhiteElo "2022"]
[BlackElo "2201"]
[Annotator "TA"]
[PlyCount "83"]
[EventDate "2023.05.24"]
[EventType "swiss"]
[EventCountry "USA"]
[SourceTitle "playchess.com"]
[Source "ChessBase"]
[SourceQuality "1"]
[TimeControl "5400+30"]

{[%evp 17,83,29,48,24,35,21,33,8,18,17,23,0,0,0,0,0,46,30,34,35,64,57,60,33,38,0,19,0,0,0,25,24,27,31,29,39,46,47,47,42,54,52,47,47,74,74,99,74,76,83,99,99,99,99,99,90,123,115,125,125,125,99,125,116,100,93,96,0]} 1. e4 {[%emt 0:00:03]} e5 {[%emt 0:00:02]} 2. Nf3 {[%emt 0:00:04]} Nc6 {[%emt 0:00:03]} 3. Bb5 {[%emt 0:00:33]} a6 {[%emt 0:00:05]} 4. Ba4 {[%emt 0:00:03]} Nf6 {[%emt 0:00:03]} 5. d3 {[%emt 0:00:16]} d6 {[%emt 0:00:32]} 6. c3 {[%emt 0:00:50]} Be7 {[%emt 0:00:21]} 7. O-O {[%emt 0:00:08]} O-O {[%emt 0:00:13]} 8. Re1 {[%emt 0:00:56]} b5 {[%emt 0:00:08]} 9. Bc2 {[%emt 0:00:07]} Re8 {[%emt 0:01:01]} 10. a4 {[%emt 0:00:45] C84: Closed Ruy Lopez: Unusual White 6th moves.} Rb8 {[%emt 0:00:26]} 11. h3 {[%emt 0:03:15]} Bf8 {[%emt 0:00:47] [#]} 12. d4 $146 {[%emt 0:01:09] White is slightly better.} ({Predecessor:} 12. Be3 Bd7 13. axb5 axb5 14. Nbd2 Ne7 15. d4 Ng6 16. b4 Qc8 17. dxe5 Nxe5 18. Nxe5 dxe5 {1-0 Sardy,P (2350)-Gergacz,B (2036) HUN-chT2 Szechenyi 1213 2012 (3.2)}) 12... b4 {[%emt 0:04:14]} 13. a5 {[%emt 0:02:50]} bxc3 {[%emt 0:04:06]} 14. Nxc3 {[%emt 0:08:27]} h6 {[%emt 0:07:11]} 15. Ba4 {[%emt 0:02:23]} Bd7 {[%emt 0:00:09]} 16. d5 {[%emt 0:01:09]} Na7 {[%emt 0:02:05]} (16... Nb4 $11) 17. Be3 $14 {[%emt 0:14:20]} Nb5 {[%emt 0:00:50]} 18. Nxb5 {[%emt 0:05:59]} Bxb5 {[%emt 0:00:08]} 19. Qc2 {[%emt 0:01:11]} Qd7 {[%emt 0:00:24]} 20. Bxb5 {[%emt 0:04:38]} Qxb5 {[%emt 0:01:19]} 21. Ra2 {[%emt 0:02:58]} (21. Qxc7 $2 Rec8 22. Qa7 Rb7 $19) 21... Nd7 {[%emt 0:13:50][%cal Of7f5]} 22. Nd2 {[%emt 0:03:04]} (22. Qxc7 $2 {perishes.} Rec8 23. Qa7 Rb7 $19) 22... f5 {[%emt 0:02:03] [#] Strongly threatening ...f4.} 23. f3 {[%emt 0:00:34]} Be7 {[%emt 0:02:51]} 24. Rc1 {[%emt 0:02:08]} (24. exf5 Nf6 $17) (24. Qxc7 $2 {is the wrong capture.} Rec8 $19) 24... fxe4 {[%emt 0:02:49]} 25. fxe4 {[%emt 0:00:18]} ({Reject} 25. Qxe4 Nf6 26. Qg6 Qxd5 27. Bxh6 Qf7 28. Qxf7+ Kxf7 $17) 25... Qe2 {[%emt 0:01:04]} 26. Nf1 {[%emt 0:07:05]} Qxc2 {[%emt 0:00:15]} 27. Rxc2 {[%emt 0:00:01]} Nc5 {[%emt 0:01:03]} 28. Nd2 {[%emt 0:03:15]} Rb5 {[%emt 0:02:50]} 29. Bxc5 {[%emt 0:02:04]} dxc5 {[%emt 0:01:14]} 30. Nc4 {[%emt 0:00:32]} Bd6 {[%emt 0:00:14]} 31. Ra3 {[%emt 0:05:31] White is better.} Rf8 {[%emt 0:01:17]} 32. Re3 {[%emt 0:02:12]} Rb4 {[%emt 0:01:22]} 33. b3 {[%emt 0:01:15]} Rbb8 {[%emt 0:04:21]} 34. Rf2 {[%emt 0:01:08]} Rf6 {[%emt 0:05:30]} 35. Kf1 {[%emt 0:04:01]} Kf7 {[%emt 0:00:17]} 36. Ke2 {[%emt 0:01:01] White is more active.} Ke7 {[%emt 0:00:42]} 37. Rff3 {[%emt 0:01:26]} Rbf8 {[%emt 0:01:56]} 38. Rxf6 {[%emt 0:01:42]} gxf6 {[%emt 0:00:47]} 39. Rf3 {[%emt 0:00:33]} Rg8 {[%emt 0:04:59]} 40. Kf2 {[%emt 0:01:13]} Kf7 {[%emt 0:01:03]} 41. Rg3 {[%emt 0:03:07] [#] Rxg8 is the strong threat.} Rb8 {[%emt 0:00:47]} 42. Rf3 {[%emt 0:01:05] Weighted Error Value: White=0.08 (flawless) /Black=0.09 (flawless)} (42. Rc3 $16) 1/2-1/2

[Event "10th Cherry Blossom Classic 2023"]
[Site "Dulles"]
[Date "2023.05.28"]
[Round "6.1"]
[White "Burke, John M"]
[Black "Nyzhnyk, Illya"]
[Result "1/2-1/2"]
[ECO "C42"]
[WhiteElo "2583"]
[BlackElo "2644"]
[Annotator "TA"]
[PlyCount "49"]
[EventDate "2023.05.24"]
[EventType "swiss"]
[EventCountry "USA"]
[SourceTitle "playchess.com"]
[Source "ChessBase"]
[SourceQuality "1"]
[TimeControl "5400+30"]

{[%evp 13,49,21,20,10,14,15,8,20,25,15,35,33,37,35,38,37,37,37,27,37,35,35,40,18,21,0,46,0,0,0,0,0,0,0,0,0,0,0]} 1. e4 {[%emt 1:31:00]} e5 {[%emt 0:00:36]} 2. Nf3 {[%emt 0:00:00]} Nf6 {[%emt 0:00:07]} 3. Nxe5 {[%emt 0:00:00]} d6 {[%emt 0:00:11]} 4. Nf3 {[%emt 0:00:00]} Nxe4 {[%emt 0:00:04]} 5. Nc3 {[%emt 0:00:00]} Nxc3 {[%emt 0:00:07]} 6. dxc3 {[%emt 0:00:00]} Be7 {[%emt 0:00:05]} 7. Be3 {[%emt 0:00:00]} O-O {[%emt 0:00:40]} 8. Qd2 {[%emt 0:00:00] C42: Petroff Defence: 3 Nxe5 and unusual White 3rd moves.} Nd7 {[%emt 0:00:42]} 9. O-O-O {[%emt 0:00:00][%cal Ba1d1,Bd1d2,Bd2e2][%mdl 32]} Nf6 $1 {[%emt 0:00:06] The main line 9...Nf6 scores better than 9...c6.} 10. Bd3 {[%emt 0:00:00]} c5 {[%emt 0:00:36][%cal Ob7b5]} 11. h4 {[%emt 0:00:00]} Qa5 {[%emt 0:04:00]} 12. a3 {[%emt 0:00:00]} d5 {[%emt 0:02:44] [#]} 13. c4 $146 {[%emt 0:00:00]} ({Predecessor:} 13. Bg5 c4 14. Be2 Rd8 15. Qe3 Bc5 16. Qf4 Bd6 17. Qd4 Bc5 18. Qf4 Bd6 19. Qd4 Bc5 20. Qf4 {½-½ Gavrilescu,D (2454)-Bacrot,E (2669) Bundesliga 1920 2019 (5.4)}) 13... Qxd2+ {[%emt 0:00:49]} 14. Rxd2 {[%emt 0:00:00]} d4 {[%emt 0:25:15]} 15. Bf4 {[%emt 0:00:00]} h6 {[%emt 0:10:34]} 16. Re2 {[%emt 0:00:00]} Re8 {[%emt 0:01:26]} 17. Rhe1 {[%emt 0:00:00]} Be6 {[%emt 0:00:06]} 18. Ne5 {[%emt 0:00:00][%cal Oe5f7] Nxf7! is the strong threat.} Bd6 {[%emt 0:13:14]} 19. Ng6 {[%emt 0:00:00]} Red8 {[%emt 0:00:21]} (19... Bxf4+ $11 20. Nxf4 Bd7) 20. f3 {[%emt 0:00:00]} (20. b4 $14) 20... fxg6 $11 {[%emt 0:02:10] The position is equal.} 21. Bxd6 {[%emt 0:00:00]} Rxd6 {[%emt 0:00:05]} 22. Rxe6 {[%emt 0:00:00]} Rxe6 {[%emt 0:00:04]} 23. Rxe6 {[%emt 0:00:00][%cal Oe6e7] [#] Hoping for Re7!} Kf7 {[%emt 0:00:04] Against Re7+} 24. Re5 {[%emt 0:00:00]} b6 {[%emt 0:00:10]} 25. Kd2 {[%emt 0:00:00] Weighted Error Value: White=0.08 (flawless) /Black=0.05 (flawless)} 1/2-1/2

[Event "10th Cherry Blossom Classic 2023"]
[Site "Dulles"]
[Date "2023.05.28"]
[Round "6.3"]
[White "Khanin, Semen"]
[Black "Antipov, Mikhail Al."]
[Result "1/2-1/2"]
[ECO "E49"]
[WhiteElo "2566"]
[BlackElo "2588"]
[Annotator "TA"]
[PlyCount "41"]
[EventDate "2023.05.24"]
[EventType "swiss"]
[EventCountry "USA"]
[SourceTitle "playchess.com"]
[Source "ChessBase"]
[SourceQuality "1"]
[TimeControl "5400+30"]

{[%evp 24,41,-8,-27,0,-8,29,38,42,37,25,10,10,8,8,15,8,0,0,0]} 1. d4 {[%emt 0:00:58]} Nf6 {[%emt 0:01:03]} 2. c4 {[%emt 0:00:03]} e6 {[%emt 0:00:05]} 3. Nc3 {[%emt 0:00:05]} Bb4 {[%emt 0:00:05]} 4. e3 {[%emt 0:00:05]} O-O {[%emt 0:00:09]} 5. Bd3 {[%emt 0:00:06]} d5 {[%emt 0:00:03]} 6. a3 {[%emt 0:00:07]} Bxc3+ {[%emt 0:00:06]} 7. bxc3 {[%emt 0:00:04]} dxc4 {[%emt 0:00:04]} 8. Bxc4 {[%emt 0:00:05]} c5 {[%emt 0:00:05]} 9. Ne2 {[%emt 0:00:45]} Qc7 {[%emt 0:00:05]} 10. Ba2 {[%emt 0:00:32]} b6 {[%emt 0:03:27]} 11. O-O {[%emt 0:00:09]} Ba6 {[%emt 0:02:44]} 12. Re1 {[%emt 0:00:07]} Nc6 {[%emt 0:00:14][%cal Bb8c6,Bc6a5,Ba5c4][%mdl 32]} 13. Ng3 {[%emt 0:00:07]} Rad8 {[%emt 0:03:11] E49: Nimzo-Indian: Rubinstein: 5 Bd3 d5 6 a3 Bxc3+ 7 bxc3.} 14. Bb2 {[%emt 0:03:09]} e5 {[%emt 0:07:58]} 15. d5 {[%emt 1:31:38]} Na5 {[%emt 0:05:22] White is slightly better.} 16. e4 {[%emt 0:00:00]} Ne8 {[%emt 0:09:27] [#]} 17. Qh5 $146 {[%emt 0:00:00]} ({Predecessor:} 17. Qg4 Nd6 18. Rad1 Qd7 19. Qh5 Qa4 20. Nf5 Nxf5 21. exf5 Rd6 22. f6 Rxf6 23. Bb1 {½-½ Haimovich,T (2447)-Berg,E (2593) EU-Cup 23rd Kemer 2007 (7.1)}) 17... Bc4 {[%emt 0:06:14] The position is equal.} 18. a4 {[%emt 0:00:00]} f6 {[%emt 0:02:35]} 19. Bxc4 {[%emt 0:00:00]} Nxc4 {[%emt 0:00:05]} 20. Bc1 {[%emt 0:00:00]} Ned6 {[%emt 0:02:30]} 21. Qe2 {[%emt 0:00:00] Weighted Error Value: White=0.06 (flawless) /Black=0.09 (flawless)} 1/2-1/2

[Event "10th Cherry Blossom Classic 2023"]
[Site "Dulles"]
[Date "2023.05.28"]
[Round "6.4"]
[White "Paul, Justin"]
[Black "Bora, Safal"]
[Result "0-1"]
[ECO "C70"]
[WhiteElo "2314"]
[BlackElo "2462"]
[Annotator "TA"]
[PlyCount "62"]
[EventDate "2023.05.24"]
[EventType "swiss"]
[EventCountry "USA"]
[SourceTitle "playchess.com"]
[Source "ChessBase"]
[SourceQuality "1"]
[TimeControl "5400+30"]

{[%evp 9,62,35,58,7,16,18,14,-61,-70,-131,-128,-135,-82,-107,-71,-86,-93,-124,-104,-98,-96,-104,-103,-134,-121,-172,-159,-233,-239,-244,-246,-239,-240,-262,-275,-359,-345,-372,-391,-379,-385,-378,-353,-450,-450,-450,-450,-446,-414,-851,-795,-845,-819,-2438,-2124]} 1. e4 {[%emt 0:00:02]} e5 {[%emt 0:00:50]} 2. Nf3 {[%emt 0:00:08]} Nc6 {[%emt 0:00:05]} 3. Bb5 {[%emt 0:00:08]} a6 {[%emt 0:00:05]} 4. Ba4 {[%emt 0:00:06]} Nge7 {[%emt 0:00:14]} 5. c3 {[%emt 0:01:26]} Ng6 {[%emt 0:00:24]} 6. O-O {[%emt 0:00:53] C70: Ruy Lopez: 3...a6 4 Ba4, Norwegian and Delayed Schliemann.} (6. d4 $14) 6... d5 $11 {[%emt 0:00:26]} 7. d4 {[%emt 0:01:53] [#] exd5 would be deadly.} dxe4 {[%emt 0:03:36] [#]} 8. Ng5 $146 {[%emt 0:09:04]} (8. Bxc6+ $11 bxc6 9. Nxe5) ({Predecessor:} 8. Nxe5 Ngxe5 9. dxe5 Qxd1 10. Rxd1 Bd7 11. Bf4 O-O-O 12. Bc2 Re8 13. Nd2 Nxe5 14. Nxe4 {½-½ Martinez Alcantara,J (2591)-Sadhwani,R (2619) Chess.com Rapid Wk14 Swiss 2022 (7)}) 8... Be7 $1 $15 {[%emt 0:08:40]} 9. d5 {[%emt 0:14:24]} ({White should play} 9. Bxc6+ $15 bxc6 10. Nxe4) 9... Bxg5 $17 {[%emt 0:02:58]} 10. dxc6 {[%emt 0:00:11]} b5 {[%emt 0:11:49]} ({Better is} 10... b6 11. Qxd8+ Bxd8) 11. Qxd8+ {[%emt 0:04:57]} Bxd8 {[%emt 0:00:13]} 12. Bb3 {[%emt 0:00:06]} f5 {[%emt 0:03:16]} 13. Rd1 {[%emt 0:10:46]} Be7 {[%emt 0:08:13]} 14. a4 {[%emt 0:03:36]} Rb8 {[%emt 0:04:44]} 15. axb5 {[%emt 0:02:13]} Rxb5 {[%emt 0:00:23]} 16. Bd5 {[%emt 0:06:06]} Nf4 {[%emt 0:02:42]} 17. Bxf4 {[%emt 0:00:34]} (17. Bc4 $17 Rb6 18. Ra5) 17... exf4 $19 {[%emt 0:00:03]} 18. b4 {[%emt 0:00:34] [#]} (18. Ra2 $17 {was necessary.}) 18... Bf6 $1 {[%emt 0:00:38]} 19. Na3 {[%emt 0:05:07]} Rb8 {[%emt 0:02:39]} 20. Rac1 {[%emt 0:00:50]} Ke7 {[%emt 0:00:26]} 21. f3 {[%emt 0:01:29]} e3 {[%emt 0:01:27]} 22. Bc4 {[%emt 0:07:28]} Rb6 {[%emt 0:01:07]} 23. b5 {[%emt 0:01:11]} axb5 {[%emt 0:01:10]} 24. Nxb5 {[%emt 0:01:27]} Rxc6 {[%emt 0:00:19]} 25. Be2 {[%emt 0:00:30]} Be6 {[%emt 0:03:08]} 26. Nd4 {[%emt 0:03:55]} Bxd4 {[%emt 0:00:33]} 27. Rxd4 {[%emt 0:00:22]} g5 {[%emt 0:00:07]} 28. g3 {[%emt 0:00:43]} Rd8 {[%emt 0:00:12]} 29. Rcd1 {[%emt 0:01:41]} (29. Rxd8 $142 Kxd8 30. gxf4 gxf4 31. Kf1) 29... Rxd4 {[%emt 0:00:11] Black is clearly winning.} 30. cxd4 {[%emt 0:00:04]} Rc2 {[%emt 0:00:32]} 31. Bd3 {[%emt 0:24:06]} Rd2 {[%emt 0:00:40] Weighted Error Value: White=0.63/Black=0.04 (flawless)} 0-1

[Event "10th Cherry Blossom Classic 2023"]
[Site "Dulles"]
[Date "2023.05.28"]
[Round "6.5"]
[White "Matviishen, Viktor"]
[Black "Williams, Justus"]
[Result "1-0"]
[ECO "E94"]
[WhiteElo "2538"]
[BlackElo "2396"]
[Annotator "TA"]
[PlyCount "77"]
[EventDate "2023.05.24"]
[EventType "swiss"]
[EventCountry "USA"]
[SourceTitle "playchess.com"]
[Source "ChessBase"]
[SourceQuality "1"]
[TimeControl "5400+30"]

{[%evp 16,77,57,42,73,71,68,78,93,79,92,45,50,28,31,21,23,36,30,39,17,0,109,60,55,67,68,84,163,125,125,103,159,117,100,33,187,186,173,158,619,613,602,604,568,594,579,566,785,762,802,779,29982,1269,1376,1187,1154,1123,2580,2745,6163,6043,4870,4004]} 1. d4 {[%emt 0:01:03]} Nf6 {[%emt 0:00:13]} 2. c4 {[%emt 0:00:05]} g6 {[%emt 0:00:53]} 3. Nc3 {[%emt 0:00:08]} Bg7 {[%emt 0:00:08]} 4. e4 {[%emt 0:00:05]} d6 {[%emt 0:00:07]} 5. Be2 {[%emt 0:00:16]} Nbd7 {[%emt 0:00:39]} 6. Be3 {[%emt 0:01:39]} e5 {[%emt 0:01:13]} 7. Nf3 {[%emt 0:00:29]} O-O {[%emt 0:00:23]} 8. O-O {[%emt 0:00:04]} Qe7 {[%emt 0:00:29]} 9. Qc2 {[%emt 0:00:53]} h6 {[%emt 0:10:59] E94: King's Indian: Classical: 6 Be2 e5 7 0-0: Various Black 7th moves.} 10. d5 {[%emt 0:06:21] [#]} Nh7 $146 {[%emt 0:05:07]} ({Predecessor:} 10... Ng4 11. Bd2 Nb6 12. b4 f5 13. Rfc1 Bd7 14. Qb3 Nxf2 15. c5 fxe4 16. Nxe4 Nxe4 17. cxb6 Nxd2 18. Nxd2 {1-0 Bursa,R (1800)-Nowak,K (1800) POL-ch U18 Girls 2000 (5)}) 11. Nd2 {[%emt 0:32:59]} f5 {[%emt 0:07:47] White is better.} 12. f3 {[%emt 0:00:03]} Ndf6 {[%emt 0:02:32] [#]} 13. c5 {[%emt 0:04:23]} dxc5 $14 {[%emt 0:05:21]} 14. b4 {[%emt 0:00:49]} cxb4 {[%emt 0:10:18]} 15. Nb5 {[%emt 0:00:01][%csl LRa7,LRc7]} Ne8 {[%emt 0:04:35]} 16. Bc5 {[%emt 0:06:43]} Qd8 {[%emt 0:05:50][%cal Oa7a6] Strongly threatening ...a6!} 17. Bxf8 {[%emt 0:08:40]} Bxf8 {[%emt 0:00:05]} 18. Rac1 $36 {[%emt 0:00:07][%cal Rb5c7][%mdl 2048] White has the initiative.} b6 {[%emt 0:05:08]} (18... Bd7 $1 $11) 19. Qc6 {[%emt 0:03:37]} (19. Nxc7 Bc5+ 20. Kh1 (20. Qxc5 $2 bxc5 21. Nxa8 Bb7 $19) 20... Qxc7 $19) ({White should try} 19. d6 $1 $16 {[%cal Rd6c7]} cxd6 20. Nxa7 {[%mdl 64] Deflection} Rxa7 21. Qxc8 Qxc8 22. Rxc8) 19... Bd7 $1 {[%emt 0:00:11]} 20. Qxg6+ {[%emt 0:00:04]} Kh8 {[%emt 0:00:05] Black is weak on the light squares} 21. f4 {[%emt 0:06:42][%cal Bf3f4,Bf4e5][%mdl 32] White is much more active. The black rooks are badly placed.} (21. exf5 a6 22. Nxc7 Nxc7 $11) 21... a6 {[%emt 0:08:57] [#]} (21... exf4 $16 22. Nd4 (22. exf5 Bc5+ 23. Kh1 a6 $11) (22. Rxf4 Qg5 $15) 22... Nef6) 22. Nxc7 $1 $18 {[%emt 0:00:41][%mdl 576] Discovered Attack} Nxc7 {[%emt 0:00:10]} 23. fxe5 {[%emt 0:05:57]} (23. exf5 Nxd5 24. fxe5 Ne7 $17) (23. Qxb6 $6 Nb5 24. Qxd8 Rxd8 $11) 23... Bc5+ {[%emt 0:02:42] [#]} (23... Bg7 $142) 24. Rxc5 $1 {[%emt 0:00:28][%mdl 512]} bxc5 {[%emt 0:00:02]} 25. d6 {[%emt 0:00:34]} ({Much worse is} 25. exf5 $6 Nxd5 26. Qxh6 (26. f6 Qg8 $15) 26... Qf8 $11) (25. Qxh6 $16 {aiming for e6.} Qf8 26. Qb6) 25... Ne6 $2 {[%emt 0:06:38]} (25... Nb5 $14) 26. exf5 {[%emt 0:00:28]} (26. Qxf5 $2 {loses.} Nd4 27. Qf2 Nxe2+ 28. Qxe2 Bb5 $19) 26... Nd4 {[%emt 0:00:39] [#]} 27. Bc4 {[%emt 0:02:08]} Qh4 {[%emt 0:04:29] Black cannot hold the game after this.} (27... Qe8 $16) 28. f6 {[%emt 0:03:17][%csl Gf6][%cal Rg6g7]} Qg5 {[%emt 0:06:19] [#]} 29. Qg7+ {[%emt 0:00:15][%mdl 576] Decoy} Qxg7 {[%emt 0:00:07]} 30. fxg7+ {[%emt 0:00:02]} Kxg7 {[%emt 0:00:06] White must now prevent ...Ng5.} 31. Rf7+ {[%emt 0:00:01]} Kg6 {[%emt 0:01:05]} 32. Rxd7 {[%emt 0:00:07]} Nf8 {[%emt 0:00:20]} 33. Bd3+ {[%emt 0:01:04]} Kg5 {[%emt 0:01:06]} 34. Rf7 {[%emt 0:00:04]} (34. Rg7+ $142 Kf4 35. Nc4 Nfe6 36. g3+ Kf3 37. Rf7+ Kg4 38. Ne3+ Kg5 39. Rf6) 34... Nfe6 {[%emt 0:02:23] White is clearly winning.} 35. Nf3+ {[%emt 0:03:00]} Nxf3+ {[%emt 0:02:12]} 36. gxf3 {[%emt 0:00:01]} Kh4 {[%emt 0:00:23]} 37. Bc4 {[%emt 0:00:34]} Ng5 {[%emt 0:00:22]} 38. Rf4+ {[%emt 0:00:17]} Kh5 {[%emt 0:00:03]} 39. Kg2 {[%emt 0:00:32] A superb game by Matviishen.   Weighted Error Value: White=0.15 (very precise) /Black=0.87} 1-0

[Event "10th Cherry Blossom Classic 2023"]
[Site "Dulles"]
[Date "2023.05.28"]
[Round "6.6"]
[White "Druska, Juraj"]
[Black "Sinha, Sahil"]
[Result "1/2-1/2"]
[ECO "B53"]
[WhiteElo "2496"]
[BlackElo "2317"]
[Annotator "TA"]
[PlyCount "97"]
[EventDate "2023.05.24"]
[EventType "swiss"]
[EventCountry "USA"]
[SourceTitle "playchess.com"]
[Source "ChessBase"]
[SourceQuality "1"]
[TimeControl "5400+30"]

{[%evp 9,97,20,18,24,14,14,16,27,27,17,15,13,56,59,53,49,52,33,26,7,64,51,64,8,8,0,15,20,39,-2,0,0,-2,0,0,-6,0,-16,109,103,99,0,10,0,0,0,0,0,0,0,0,0,0,0,0,0,0,0,0,0,0,0,0,0,0,0,0,0,4,0,0,0,0,0,0,0,0,0,0,0,0,0,0,0,0,0,0,0,0,0]} 1. e4 {[%emt 0:00:38]} c5 {[%emt 0:00:05]} 2. Nf3 {[%emt 0:00:07]} d6 {[%emt 0:00:07]} 3. d4 {[%emt 0:00:17]} cxd4 {[%emt 0:00:06]} 4. Qxd4 {[%emt 0:00:05]} a6 {[%emt 0:00:55]} 5. h3 {[%emt 0:00:19]} Nc6 {[%emt 0:00:15]} 6. Qe3 {[%emt 0:00:12] B53: Sicilian: 2...d6: Lines with Qxd4.} g6 {[%emt 0:01:55] 6...g6 scores better than 6...Nf6.} 7. Be2 {[%emt 0:00:09]} Bg7 {[%emt 0:00:05]} 8. c4 {[%emt 0:00:34]} Nf6 {[%emt 0:01:30]} 9. O-O {[%emt 0:00:31]} O-O {[%emt 0:00:51]} 10. Nc3 {[%emt 0:00:23]} b6 {[%emt 0:02:27]} 11. Rd1 {[%emt 0:05:18]} Nd7 {[%emt 0:02:24]} 12. b3 {[%emt 0:02:52]} Bb7 {[%emt 0:02:56]} 13. Bb2 {[%emt 0:01:15]} Nc5 {[%emt 0:02:43]} 14. Rab1 {[%emt 0:01:37]} a5 {[%emt 0:02:09]} (14... e5 $1 $11) 15. Nd5 {[%emt 0:16:08]} f6 {[%emt 0:08:21] [#]} 16. Nh2 $146 {[%emt 0:15:41] White has more active pieces.} (16. a3 $14) ({Predecessor:} 16. a3 e6 17. Nc3 Qe7 18. Nb5 Rfd8 19. Ne1 Ne5 20. f4 Bh6 21. Nc3 Rdc8 22. g4 {1-0 Du Plessis,H (2075)-Wu,K (1905) Wch U20 51st 2012 (4)}) 16... e6 {[%emt 0:06:43][%cal Be7e6,Be6f5,Bf5f4][%mdl 32]} 17. Nc3 {[%emt 0:00:20]} Qe7 {[%emt 0:09:46]} 18. Nb5 {[%emt 0:05:38]} Rad8 {[%emt 0:01:58]} 19. Rd2 {[%emt 0:02:58]} (19. a3 $5 {[%cal Rb2a1]}) 19... Ne5 {[%emt 0:02:58]} 20. f3 {[%emt 0:08:16]} f5 {[%emt 0:01:12]} 21. exf5 {[%emt 0:01:02]} exf5 {[%emt 0:00:47][%cal Oe5f3] And now ...Nxf3+! would win.} 22. Kh1 {[%emt 0:06:11]} f4 {[%emt 0:01:10]} 23. Qf2 {[%emt 0:02:00]} d5 {[%emt 0:04:24]} (23... Rd7 $11) 24. cxd5 $16 {[%emt 0:02:51]} Bxd5 {[%emt 0:11:04] [#]} 25. Rbd1 {[%emt 0:05:38]} (25. Bxe5 $1 $16 Qxe5 26. Rbd1) 25... Bc6 $11 {[%emt 0:03:43] The position is equal.} 26. Ng4 {[%emt 0:07:42]} (26. Bxe5 {simplifies} Bxe5 27. Nd4 Bd7 28. Bc4+) 26... Nxg4 {[%emt 0:06:18]} 27. Bc4+ {[%emt 0:00:27]} Bd5 $1 {[%emt 0:05:39]} 28. Bxd5+ {[%emt 0:02:15]} Rxd5 {[%emt 0:01:22]} 29. hxg4 {[%emt 0:00:10]} Nd3 {[%emt 0:00:57][%mdl 64] [#] Deflection} 30. Rxd3 {[%emt 0:00:30]} Rxd3 {[%emt 0:00:06]} 31. Rxd3 {[%emt 0:00:56]} Bxb2 {[%emt 0:00:03]} 32. Rd1 {[%emt 0:03:39]} ({Much worse is} 32. Qxb2 Qh4+ 33. Kg1 Qe1+ 34. Kh2 Re8 $19) 32... Rd8 {[%emt 0:00:18]} 33. Rxd8+ {[%emt 0:01:39]} Qxd8 {[%emt 0:00:02][%mdl 4096] Endgame KQB-KQN} 34. Qe2 {[%emt 0:00:18]} Qf6 {[%emt 0:02:11]} 35. Kg1 {[%emt 0:03:59]} Bd4+ {[%emt 0:04:46]} 36. Nxd4 {[%emt 0:00:08]} Qxd4+ {[%emt 0:00:02] KQ-KQ} 37. Kh2 {[%emt 0:00:23]} Kf7 {[%emt 0:01:11] Inhibits Qe6+.} 38. Qc2 {[%emt 0:00:52]} Kf6 {[%emt 0:01:32]} 39. Qc6+ {[%emt 0:00:42]} Kg5 {[%emt 0:00:50]} 40. Qc7 {[%emt 0:00:59]} h5 {[%emt 0:02:05]} 41. gxh5 {[%emt 0:01:18]} Kxh5 {[%emt 0:00:56]} 42. Kh3 {[%emt 0:01:54]} Kg5 {[%emt 0:00:02] ( -> ...Qh8+)} 43. Qe7+ {[%emt 0:00:16]} Kf5 {[%emt 0:00:33] Strongly threatening ...Qh8+.} 44. Qf8+ {[%emt 0:00:32]} Kg5 {[%emt 0:01:01]} 45. Qc8 {[%emt 0:01:24]} Qf6 {[%emt 0:01:50]} 46. Qg4+ {[%emt 0:01:18]} Kh6 {[%emt 0:00:00]} 47. Qd7 {[%emt 0:00:45]} Qg5 {[%emt 0:01:06][%cal Rg5h5]} 48. Kh2 {[%emt 0:00:48]} Qg3+ {[%emt 0:00:46]} 49. Kh1 {[%emt 0:00:02] An interesting game.   Weighted Error Value: White=0.08 (flawless) /Black=0.10 (very precise)} 1/2-1/2